{"text_format":"1","workbook":"xlsx","n_sheets":2,"sheets":["Протокол ПТМ(1)","Лист1"],"not_rendered":{"charts":0,"images":0,"macros":1,"external_links":1,"defined_names":6,"comments":0,"pivot_tables":0},"unopened":[],"bounds":{"document_bytes":16777216,"sheet_cells":100000,"rows_first":2000,"rows_last":500,"rows_between":2000,"halvings":0,"cell_chars":16384,"cell_head_chars":4096},"cells_cut":0,"cells_raw":0,"read":"whole","date_system":"1900"}

{"sheet":"Протокол ПТМ(1)","index":0,"n_rows":102,"n_cols":8,"rows_kept":102,"cut":false,"hidden":false,"merged":[[7,1,7,7],[95,3,95,5],[98,3,98,5],[100,3,100,5],[1,1,1,7],[2,1,2,7],[3,1,3,7],[4,1,4,7],[6,1,6,7],[19,1,19,7],[8,1,8,7],[9,1,9,7],[10,1,10,7],[11,1,11,7],[12,1,12,7],[13,1,13,7],[14,1,14,7],[15,1,15,7],[16,1,16,7],[17,1,17,7],[18,1,18,7]]}
[]
[null,"ПРОТОКОЛ № 23"]
[null,"заседания комиссии по проверке знаний требований охраны труда работников"]
[]
[null,"(полное наименование организации)"]
[]
[null,"« 15»  мая  2014 г."]
[null," В соответствии с приказом (распоряжением) работодателя (руководителя) организации от"]
[null,"«27»  января 2014г. № 11    комиссия в составе:"]
[null,"Председателя:                              главный инженер                        "]
[null,"(Ф.И.О., должность)"]
[null,"Членов комиссии:                            инженер по ОТ и ПБ                "]
[null,"(Ф.И.О., должность)"]
[null,"                                                          мастер СМР                             "]
[null,"(Ф.И.О., должность)"]
[null,"                                                          начальник участка                          "]
[null,"(Ф.И.О., должность)"]
[null,"Провела    проверку    знаний     требований    охраны    труда    работников"]
[null,"по программе №5 для водителей автомобилей"]
[null,"(наименование программы обучения по охране труда)"]
[]
[null,"№ п/п","Ф.И.О.","Должность","Наименоване подразделения (цех, участок, отдел, лаборатория и т.д.)","Результат проверки знаний (сдал / не сдал) № выданного удостоверения","Причина проверки знаний (очередная, внеочередная и т.д.)","Подпись проверяемого"]
[null,{"$f":"SUBTOTAL(103,$C$23:C23)","v":1},"Акименко Андрей Владимирович","стропальщик",null,"сдал","первичная"]
[null,{"$f":"SUBTOTAL(103,$C$23:C24)","v":1},"Белов Игорь Кузьмич","водитель автомобиля",null,"сдал","первичная"]
[null,{"$f":"SUBTOTAL(103,$C$23:C25)","v":1},"Бережный Сергей Александрович","изолировщик",null,"сдал","первичная"]
[null,{"$f":"SUBTOTAL(103,$C$23:C26)","v":1},"Бирюков Владислав Васильевич","водитель автомобиля",null,"сдал","первичная"]
["!",{"$f":"SUBTOTAL(103,$C$23:C27)","v":1},"Блаживский Олег Степанович","изолировщик",null,"сдал","первичная"]
[null,{"$f":"SUBTOTAL(103,$C$23:C28)","v":1},"Блажко Александр Витальевич","водитель автомобиля",null,"сдал","первичная"]
[null,{"$f":"SUBTOTAL(103,$C$23:C29)","v":1},"Боголюбский Николай Владимирович","монтажник",null,"сдал","первичная"]
[null,{"$f":"SUBTOTAL(103,$C$23:C30)","v":1},"Бондаренко Геннадий Викторович","водитель автомобиля",null,"сдал","первичная"]
[null,{"$f":"SUBTOTAL(103,$C$23:C31)","v":1},"Бондаренко Сергей Павлович","монтажник",null,"сдал","первичная"]
[null,{"$f":"SUBTOTAL(103,$C$23:C32)","v":1},"Бондарь Олег Анатольевич","водитель автомобиля",null,"сдал","первичная"]
[null,{"$f":"SUBTOTAL(103,$C$23:C33)","v":1},"Борисович Святослав Николаевич","изолировщик",null,"сдал","первичная"]
[null,{"$f":"SUBTOTAL(103,$C$23:C34)","v":1},"Бортник  Юрий Анатольевич","водитель автомобиля",null,"сдал","первичная"]
[null,{"$f":"SUBTOTAL(103,$C$23:C35)","v":1},"Боярчук Александр Николаевич","водитель автомобиля",null,"сдал","первичная"]
[null,{"$f":"SUBTOTAL(103,$C$23:C36)","v":1},"Бровенко Валерий Константинович","изолировщик",null,"сдал","первичная"]
[null,{"$f":"SUBTOTAL(103,$C$23:C37)","v":1},"Бубнов Александр Александрович","монтажник",null,"сдал","первичная"]
[null,{"$f":"SUBTOTAL(103,$C$23:C38)","v":1},"Бубнов Сергей Юрьевич","водитель автомобиля",null,"сдал","первичная"]
[null,{"$f":"SUBTOTAL(103,$C$23:C39)","v":1},"Бугайчук Александр Юрьевич","монтажник",null,"сдал","первичная"]
[null,{"$f":"SUBTOTAL(103,$C$23:C40)","v":1},"Букреев Сергей Александрович","машинист экскаватора",null,"сдал","первичная"]
[null,{"$f":"SUBTOTAL(103,$C$23:C41)","v":1},"Пивовар Виталий Михайлович","монтажник",null,"сдал","первичная"]
[null,{"$f":"SUBTOTAL(103,$C$23:C42)","v":1},"Пивовар Максим Александрович","электрогазосварщик",null,"сдал","первичная"]
[null,{"$f":"SUBTOTAL(103,$C$23:C43)","v":1},"Пивовар Станислав Васильевич","водитель автомобиля",null,"сдал","первичная"]
[null,{"$f":"SUBTOTAL(103,$C$23:C44)","v":1},"Бульба Анатолий Николаевич","монтажник",null,"сдал","первичная"]
[null,{"$f":"SUBTOTAL(103,$C$23:C45)","v":1},"Бурч Владимир Михайлович","водитель автомобиля",null,"сдал","первичная"]
[null,{"$f":"SUBTOTAL(103,$C$23:C46)","v":1},"Буряк Виктор Иванович","электрогазосварщик",null,"сдал","первичная"]
[null,{"$f":"SUBTOTAL(103,$C$23:C47)","v":1},"Бычков Евгений Викторович","изолировщик",null,"сдал","первичная"]
[null,{"$f":"SUBTOTAL(103,$C$23:C48)","v":1},"Васильченко Александр Иванович","слесарь",null,"сдал","первичная"]
[null,{"$f":"SUBTOTAL(103,$C$23:C49)","v":1},"Венгловский Александр Константинович","изолировщик",null,"сдал","первичная"]
[null,{"$f":"SUBTOTAL(103,$C$23:C50)","v":1},"Верещагин Игорь Валерьевич","водитель автомобиля",null,"сдал","первичная"]
[null,{"$f":"SUBTOTAL(103,$C$23:C51)","v":1},"Винник Руслан Сергеевич","мастер СМР",null,"сдал","первичная"]
[null,{"$f":"SUBTOTAL(103,$C$23:C52)","v":1},"Винтонив Анатолий Ярославович","монтажник",null,"сдал","первичная"]
[null,{"$f":"SUBTOTAL(103,$C$23:C53)","v":1},"Волокитин Вадим Юрьевич","мастер СМР",null,"сдал","первичная"]
[null,{"$f":"SUBTOTAL(103,$C$23:C54)","v":1},"Гайнулин Дамир Радифович","подсобный рабочий",null,"сдал","первичная"]
[null,{"$f":"SUBTOTAL(103,$C$23:C55)","v":1},"Галеев Рустам Тимирьянович","подсобный рабочий",null,"сдал","первичная"]
[null,{"$f":"SUBTOTAL(103,$C$23:C56)","v":1},"Кулик Виктор Васильевич","начальник участка",null,"сдал","первичная"]
[null,{"$f":"SUBTOTAL(103,$C$23:C57)","v":1},"Куликов Вадим Владимирович","подсобный рабочий",null,"сдал","первичная"]
[null,{"$f":"SUBTOTAL(103,$C$23:C58)","v":1},"Кулинич Павел Валерьевич","монтажник",null,"сдал","первичная"]
[null,{"$f":"SUBTOTAL(103,$C$23:C59)","v":1},"Галкин Антон Антонович","изолировщик",null,"сдал","первичная"]
[null,{"$f":"SUBTOTAL(103,$C$23:C60)","v":1},"Голдабин Сергей Александрович","монтажник",null,"сдал","первичная"]
[null,{"$f":"SUBTOTAL(103,$C$23:C61)","v":1},"Гончаренко Виталий Васильевич","подсобный рабочий",null,"сдал","первичная"]
[null,{"$f":"SUBTOTAL(103,$C$23:C62)","v":1},"Гритчин Роман Юрьевич","маляр-штукатур",null,"сдал","первичная"]
[null,{"$f":"SUBTOTAL(103,$C$23:C63)","v":1},"Гриценко Владимир Дмитриевич","механик",null,"сдал","первичная"]
[null,{"$f":"SUBTOTAL(103,$C$23:C64)","v":1},"Грицина Дмитрий Михайлович","электрогазосварщик",null,"сдал","первичная"]
[null,{"$f":"SUBTOTAL(103,$C$23:C65)","v":1},"Гусев Алексей Геннадиевич","монтажник",null,"сдал","первичная"]
[null,{"$f":"SUBTOTAL(103,$C$23:C66)","v":1},"Малюта Сергей Константинович","электрогазосварщик",null,"сдал","первичная"]
[null,{"$f":"SUBTOTAL(103,$C$23:C67)","v":1},"Маранчак Роман Юрьевич","подсобный рабочий",null,"сдал","первичная"]
[null,{"$f":"SUBTOTAL(103,$C$23:C68)","v":1},"Гуслев Игорь Анатольевич","столяр",null,"сдал","первичная"]
[null,{"$f":"SUBTOTAL(103,$C$23:C69)","v":1},"Диденко Николай Викторович","подсобный рабочий",null,"сдал","первичная"]
[null,{"$f":"SUBTOTAL(103,$C$23:C70)","v":1},"Еленевский Вячеслав Валериевич","монтажник",null,"сдал","первичная"]
[null,{"$f":"SUBTOTAL(103,$C$23:C71)","v":2},"Еременко Виталий Михайлович","стропальщик",null,"сдал","первичная"]
[null,{"$f":"SUBTOTAL(103,$C$23:C72)","v":2},"Ефремов Александр Ильич","монтажник",null,"сдал","первичная"]
[null,{"$f":"SUBTOTAL(103,$C$23:C73)","v":2},"Жеребной Евгений Сергеевич","монтажник",null,"сдал","первичная"]
[null,{"$f":"SUBTOTAL(103,$C$23:C74)","v":2},"Завадский Николай Иванович","электрогазосварщик",null,"сдал","первичная"]
[null,{"$f":"SUBTOTAL(103,$C$23:C75)","v":2},"Загладько Сергей Николаевич","изолировщик",null,"сдал","первичная"]
[null,{"$f":"SUBTOTAL(103,$C$23:C76)","v":2},"Заривняк Сергей Викторович","монтажник",null,"сдал","первичная"]
[null,{"$f":"SUBTOTAL(103,$C$23:C77)","v":2},"Зиборов Андрей Сергеевич","монтажник",null,"сдал","первичная"]
[null,{"$f":"SUBTOTAL(103,$C$23:C78)","v":2},"Зыблый Сергей Петрович","электрогазосварщик",null,"сдал","первичная"]
[null,{"$f":"SUBTOTAL(103,$C$23:C79)","v":2},"Изотов Александр Алексеевич","электрогазосварщик",null,"сдал","первичная"]
[null,{"$f":"SUBTOTAL(103,$C$23:C80)","v":2},"Иржавский Игорь Валентинович","электрогазосварщик",null,"сдал","первичная"]
[null,{"$f":"SUBTOTAL(103,$C$23:C81)","v":2},"Кабалов Эдуард Александрович","электрогазосварщик",null,"сдал","первичная"]
[null,{"$f":"SUBTOTAL(103,$C$23:C82)","v":2},"Овчаров Алексей Николаевич","электрогазосварщик",null,"сдал","первичная"]
[null,{"$f":"SUBTOTAL(103,$C$23:C83)","v":2},"Гордиенко Александр Иванович","столяр",null,"сдал","первичная"]
[null,{"$f":"SUBTOTAL(103,$C$23:C84)","v":2},"Григорьев Михаил Викторович","подсобный рабочий",null,"сдал","первичная"]
[null,{"$f":"SUBTOTAL(103,$C$23:C85)","v":2},"Приходько Роман Степанович","механик",null,"сдал","первичная"]
[null,{"$f":"SUBTOTAL(103,$C$23:C86)","v":2},"Рожковский Валерий Николаевич","изолировщик",null,"сдал","первичная"]
[null,{"$f":"SUBTOTAL(103,$C$23:C87)","v":2},"Ткач Сергей Васильевич","слесарь-электрик ",null,"сдал","первичная"]
[null,{"$f":"SUBTOTAL(103,$C$23:C88)","v":2},"Федотов Александр Иванович","столяр",null,"сдал","первичная"]
[null,{"$f":"SUBTOTAL(103,$C$23:C89)","v":2},"Хроменко Александр Николаевич","маляр-штукатур",null,"сдал","первичная"]
[null,{"$f":"SUBTOTAL(103,$C$23:C90)","v":2},"Черепнин Юрий Васильевич","подсобный рабочий",null,"сдал","первичная"]
[null,{"$f":"SUBTOTAL(103,$C$23:C91)","v":2},"Шинкаренко Михаил Сергеевич ","изолировщик",null,"сдал","первичная"]
[null,{"$f":"SUBTOTAL(103,$C$23:C92)","v":2},"Долов Анатолий Малхазович","мастер СМР",null,"сдал","первичная"]
[]
[]
[null,null,"Председатель комиссии        "]
[null,null,null,"(подпись, Ф.И.О.)"]
[]
[null,null,"Члены комиссии:"]
[null,null,null,"(подпись, Ф.И.О.)"]
[]
[null,null,null,"(подпись, Ф.И.О.)"]
[null,null,null,null,null,"Кулик В.В."]

{"sheet":"Лист1","index":1,"n_rows":15,"n_cols":3,"rows_kept":15,"cut":false,"hidden":false,"merged":[[14,2,14,8],[2,2,2,8],[3,2,3,8],[4,2,4,8],[5,2,5,8],[6,2,6,8],[7,2,7,8],[9,2,9,8],[10,2,10,8],[11,2,11,8],[12,2,12,8],[13,2,13,8]]}
[]
[]
[null,"Высотные","по инструкции ИОТВР 7.10 «Инструкция по охране труда при работе на высоте (верхолазные работы)»,  инструкция по охране труда при выполнении работ на высоте  № ИВ – 1.4./МГПУ/10\n"]
[null,"стропальщики","по программе №10 для стропальщиков"]
[null,"каменщики","по программе №11 для каменщиков"]
[null,"столяры","по программе №12 для столяров строительных"]
[null,"подсобники","по программе №15 для подсобных рабочих"]
[null,"слесари","по программе №17 для слесаря-электрика"]
[null,"слесари","по программе№13 для слесаря-ремонтника"]
[null,"сварщики","по программе №2  для электрогазосварщиков (газорезчиков), программе №4 для электросварщиков"]
[null,"монтажники","по программе №3 для монтажников стальных и железобетонных конструкций, программе №18 для монтажников наружных трубопроводов"]
[null,"водители","по программе №5 для водителей автомобилей"]
[null,"маляр-штукатур","по программе №6 для штукатуров, №8 для маляров"]
[null,"изолировщики","по программе №7 для изолировщиков"]
[null,"ПТМ","по типовой инструкции по безопасному проведению огневых работ на газовых объектах ОАО «Мир\"; по типовой инструкции по организации безопасного проведения огневых работ и взрывоопасных и взрывопожароопасных объектах РД 09-364-00; инструкция по производству строительных работ в охранной зоне магистральных трубопроводов ВСН 51-1-80, инструкции по организации безопасного проведения огневых работ на  объектах \"Мир»"]